fUST/lending_fUST_20250427
["ID","MTS","AMOUNT","RATE_DAILY","PERIOD"]
[359130070,1745725847072,-160.0,0.0002,3]
[359130072,1745725847082,-151.0,0.0002,2]
[359130073,1745725847091,-184.159243,0.0002,2]
[359130075,1745725847101,-215.12883799,0.00020072,2]
[359130077,1745725847111,-207.4,0.00020123,2]
[359130079,1745725847121,-252.43422001,0.00020126,2]
[359130081,1745725847131,-1354.33525802,0.00020173,2]
[359130083,1745725847140,-1115.09,0.00020273,2]
[359130085,1745725847151,-400.0,0.00020273,2]
[359130086,1745725847160,-466.76,0.00020273,2]
[359130088,1745725847170,-400.0,0.00020273,2]
[359130090,1745725847180,-505.13,0.00020273,2]
[359130092,1745725847190,-400.0,0.00020273,2]
[359130094,1745725847200,-1115.09,0.00020547,2]
[359130096,1745725847210,-400.0,0.00020547,2]
[359130098,1745725847220,-466.76,0.00020547,2]
[359130099,1745725847230,-400.0,0.00020547,2]
[359130101,1745725847239,-505.13,0.00020547,2]
[359130103,1745725847250,-400.0,0.00020547,2]
[359130105,1745725847260,-1115.09,0.00020821,2]
[359130107,1745725847269,-400.0,0.00020821,2]
[359130109,1745725847280,-466.76,0.00020821,2]
[359130110,1745725847289,-400.0,0.00020821,2]
[359130112,1745725847299,-505.13,0.00020821,2]
[359130114,1745725847309,-400.0,0.00020821,2]
[359130116,1745725847319,-600.0,0.00020822,2]
[359130118,1745725847329,-2000.0,0.00020859,4]
[359130120,1745725847338,-215.12883799,0.00020866,3]
[359130121,1745725847348,-157.47,0.00021,2]
[359130123,1745725847357,-1115.09,0.00021095,2]
[359130125,1745725847367,-400.0,0.00021095,2]
[359130127,1745725847377,-466.76,0.00021095,2]
[359130129,1745725847387,-400.0,0.00021095,2]
[359130131,1745725847397,-505.13,0.00021095,2]
[359130133,1745725847406,-400.0,0.00021095,2]
[359130134,1745725847418,-600.0,0.00021164,2]
[359130136,1745725847429,-1115.09,0.00021369,2]
[359130138,1745725847439,-176.87,0.00021369,2]
[359130140,1745725847448,-466.76,0.00021369,2]
[359130141,1745725847458,-452.5,0.00021369,2]
[359130143,1745725847468,-505.13,0.00021369,2]
[359130144,1745725847478,-309.53015567,0.00021369,2]
[359130146,1745725847488,-1115.09,0.00021643,2]
[359130148,1745725847498,-466.76,0.00021643,2]
[359130149,1745725847507,-505.13,0.00021643,2]
[359130150,1745725847517,-200.01928686,0.0002165,2]
[359130151,1745725847526,-215.12883799,0.00021659,3]
[359130152,1745725847536,-2000.0,0.00021773,4]
[359130153,1745725847545,-404.95,0.00021806,2]
[359130154,1745725847554,-160.0,0.00021917,2]
[359130155,1745725847564,-1115.09,0.00021917,2]
[359130156,1745725847573,-466.76,0.00021917,2]
[359130157,1745725847583,-505.13,0.00021917,2]
[359130158,1745725847593,-150.0,0.00021918,2]
[359130159,1745725847603,-3206.81,0.00022,2]
[359130160,1745725847614,-1115.09,0.00022191,2]
[359130161,1745725847624,-466.76,0.00022191,2]
[359130162,1745725847636,-505.13,0.00022191,2]
[359130163,1745725847647,-668.280163,0.00022252,2]
[359130164,1745725847657,-668.280163,0.00022252,2]
[359130165,1745725847667,-1000.0,0.00022252,2]
[359130166,1745725847677,-1004.36758125,0.00022252,2]
[359130167,1745725847687,-1000.0,0.00022252,2]
[359130168,1745725847697,-1000.0,0.00022252,2]
[359130169,1745725847707,-500.0,0.00022252,2]
[359130170,1745725847717,-1000.0,0.00022252,2]
[359130171,1745725847730,-1000.0,0.00022252,2]
[359130172,1745725847741,-600.0,0.0002226,2]
[359130173,1745725847751,-215.12883799,0.00022452,4]
[359130174,1745725847761,-1115.09,0.00022465,2]
[359130175,1745725847772,-466.76,0.00022465,2]
[359130176,1745725847782,-505.13,0.00022465,2]
[359130177,1745725847792,-250.0,0.00022466,2]
[359130178,1745725847802,-900.0,0.00022466,2]
[359130179,1745725847812,-2000.0,0.00022687,4]
[359130180,1745725847821,-1115.31,0.00022739,2]
[359130181,1745725847831,-466.8491844,0.00022739,2]
[359130182,1745725847841,-505.2,0.00022739,2]
[359130183,1745725847851,-157.2502195,0.00022847,2]
[359130184,1745725847861,-1000.0,0.0002292,2]
[359130185,1745725847871,-3774.55588275,0.00022935,2]
[359130186,1745725847888,-436.73,0.00022935,2]
[359130199,1745726836099,-250.0,0.00015411,2]
[359130200,1745726836120,-284.610342,0.00015742,2]
[359130201,1745726836144,-500.0,0.00016164,2]
[359130202,1745726836167,-393.31439889,0.00016338,2]
[359130203,1745726836188,-300.0,0.00016436,2]
[359130204,1745726836215,-500.0,0.00016437,2]
[359130205,1745726836241,-500.0,0.00016437,2]
[359130206,1745726836267,-500.0,0.00016437,2]
[359130207,1745726836291,-500.0,0.00016437,2]
[359130208,1745726836315,-10.95337414,0.00016437,2]
[359130211,1745726967086,-250.0,0.00015311,2]
[359130212,1745726967112,-300.0,0.00016436,2]
[359130213,1745726967142,-411.16465805,0.00016437,2]
[359130271,1745727042970,-411.21990084,0.00016338,2]
[359130272,1745727042980,-88.78009916,0.00016437,2]
[359130510,1745727045914,-109.03402867,0.00016437,2]
[359130512,1745727045924,-500.0,0.00016437,2]
[359130514,1745727045933,-500.0,0.00016437,2]
[359130516,1745727045943,-497.70325707,0.00016437,2]
[359130519,1745727045955,-2.29674293,0.00016437,2]
[359130521,1745727045965,-500.0,0.00016437,2]
[359130523,1745727045975,-72.18275125,0.00016437,2]
[359130525,1745727045988,-261.77226388,0.00016437,2]
[359130527,1745727045998,-500.0,0.00016437,2]
[359130529,1745727046007,-500.0,0.00016437,2]
[359130531,1745727046019,-268.41145837,0.00016437,2]
[359130533,1745727046030,-231.58854163,0.00016437,2]
[359130535,1745727046043,-251.36780207,0.00016437,2]
[359130537,1745727046053,-622.92898699,0.00016437,2]
[359130539,1745727046064,-500.0,0.00016437,2]
[359130541,1745727046074,-500.0,0.00016437,2]
[359130542,1745727046083,-500.0,0.00016437,2]
[359130544,1745727046094,-500.0,0.00016438,2]
[359130546,1745727046104,-507.79657515,0.00016438,2]
[359130548,1745727046114,-499.19257749,0.00016438,2]
[359130550,1745727046125,-500.0,0.00016438,2]
[359130552,1745727046136,-400.0,0.00016438,2]
[359130554,1745727046147,-400.0,0.00016438,2]
[359130556,1745727046156,-400.0,0.00016438,2]
[359130558,1745727046166,-500.0,0.00016438,2]
[359130560,1745727046176,-400.0,0.00016438,2]
[359130562,1745727046185,-400.0,0.00016438,2]
[359130564,1745727046195,-400.0,0.00016438,2]
[359130566,1745727046206,-400.0,0.00016438,2]
[359130568,1745727046216,-400.0,0.00016438,2]
[359130570,1745727046226,-500.0,0.00016438,2]
[359130572,1745727046235,-400.0,0.00016438,2]
[359130574,1745727046245,-500.0,0.00016438,2]
[359130576,1745727046254,-400.0,0.00016438,2]
[359130578,1745727046264,-400.0,0.00016438,2]
[359130580,1745727046273,-543.42769154,0.00016438,2]
[359130582,1745727046283,-400.0,0.00016438,2]
[359130584,1745727046292,-400.0,0.00016438,2]
[359130586,1745727046301,-400.0,0.00016438,2]
[359130588,1745727046311,-400.0,0.00016438,2]
[359130590,1745727046320,-400.0,0.00016438,2]
[359130592,1745727046329,-400.0,0.00016438,2]
[359130593,1745727046339,-400.0,0.00016438,2]
[359130595,1745727046348,-130.47660131,0.00016438,2]
[359130598,1745727046365,-269.52339869,0.00016438,2]
[359130600,1745727046375,-500.0,0.00016438,2]
[359130602,1745727046385,-400.0,0.00016438,2]
[359130604,1745727046395,-248.0,0.00016438,2]
[359130606,1745727046404,-307.02211367,0.00016438,2]
[359130608,1745727046414,-400.0,0.00016438,2]
[359130610,1745727046423,-400.0,0.00016438,2]
[359130612,1745727046434,-500.0,0.00016438,2]
[359130614,1745727046444,-400.0,0.00016438,2]
[359130616,1745727046453,-400.0,0.00016438,2]
[359130618,1745727046463,-400.0,0.00016438,2]
[359130620,1745727046473,-400.0,0.00016438,2]
[359130622,1745727046483,-400.0,0.00016438,2]
[359130624,1745727046493,-500.0,0.00016438,2]
[359130625,1745727046502,-400.0,0.00016438,2]
[359130627,1745727046512,-400.0,0.00016438,2]
[359130629,1745727046522,-400.0,0.00016438,2]
[359130631,1745727046533,-500.0,0.00016438,2]
[359130633,1745727046543,-500.0,0.00016438,2]
[359130635,1745727046552,-400.0,0.00016438,2]
[359130637,1745727046562,-400.0,0.00016438,2]
[359130639,1745727046572,-400.0,0.00016438,2]
[359130641,1745727046582,-400.0,0.00016438,2]
[359130643,1745727046593,-500.0,0.00016438,2]
[359130645,1745727046603,-400.0,0.00016438,2]
[359130647,1745727046613,-400.0,0.00016438,2]
[359130649,1745727046623,-400.0,0.00016438,2]
[359130651,1745727046633,-503.28472992,0.00016438,2]
[359130653,1745727046643,-500.0,0.00016438,2]
[359130655,1745727046653,-400.0,0.00016438,2]
[359130657,1745727046663,-500.0,0.00016438,2]
[359130659,1745727046672,-400.0,0.00016438,2]
[359130661,1745727046682,-400.0,0.00016438,2]
[359130663,1745727046691,-400.0,0.00016438,2]
[359130665,1745727046701,-400.0,0.00016438,2]
[359130667,1745727046711,-400.0,0.00016438,2]
[359130669,1745727046720,-400.0,0.00016438,2]
[359130671,1745727046730,-400.0,0.00016438,2]
[359130673,1745727046739,-400.0,0.00016438,2]
[359130675,1745727046748,-400.0,0.00016438,2]
[359130677,1745727046758,-500.0,0.00016438,2]
[359130679,1745727046767,-400.0,0.00016438,2]
[359130681,1745727046777,-400.0,0.00016438,2]
[359130683,1745727046787,-401.89096434,0.00016438,2]
[359130685,1745727046797,-400.0,0.00016438,2]
[359130687,1745727046806,-386.91,0.00016712,2]
[359130689,1745727046815,-400.0,0.00016712,2]
[359130690,1745727046825,-400.0,0.00016712,2]
[359130692,1745727046834,-400.0,0.00016712,2]
[359130694,1745727046845,-400.0,0.00016712,2]
[359130696,1745727046854,-400.0,0.00016712,2]
[359130698,1745727046864,-400.0,0.00016712,2]
[359130700,1745727046874,-300.0,0.00016712,2]
[359130702,1745727046883,-400.0,0.00016712,2]
[359130704,1745727046894,-400.0,0.00016712,2]
[359130706,1745727046903,-400.0,0.00016712,2]
[359130708,1745727046913,-400.0,0.00016712,2]
[359130710,1745727046923,-400.0,0.00016712,2]
[359130712,1745727046932,-400.0,0.00016712,2]
[359130713,1745727046942,-400.0,0.00016712,2]
[359130715,1745727046951,-400.0,0.00016712,2]
[359130717,1745727046961,-400.0,0.00016712,2]
[359130719,1745727046970,-400.0,0.00016712,2]
[359130721,1745727046981,-400.0,0.00016712,2]
[359130723,1745727046990,-242.84104397,0.00016712,2]
[359130725,1745727047000,-400.0,0.00016712,2]
[359130727,1745727047010,-400.0,0.00016712,2]
[359130729,1745727047019,-400.0,0.00016712,2]
[359130731,1745727047028,-400.0,0.00016712,2]
[359130733,1745727047038,-400.0,0.00016712,2]
[359130735,1745727047049,-400.0,0.00016712,2]
[359130737,1745727047058,-400.0,0.00016712,2]
[359130739,1745727047068,-400.0,0.00016712,2]
[359130741,1745727047078,-400.0,0.00016712,2]
[359130743,1745727047087,-400.0,0.00016712,2]
[359130744,1745727047096,-400.0,0.00016712,2]
[359130746,1745727047106,-400.0,0.00016712,2]
[359130748,1745727047115,-240.78,0.00016712,2]
[359130750,1745727047125,-400.0,0.00016712,2]
[359130752,1745727047137,-400.0,0.00016712,2]
[359130754,1745727047146,-400.0,0.00016712,2]
[359130756,1745727047156,-300.0,0.00016712,2]
[359130758,1745727047165,-361.61214509,0.00016712,2]
[359130760,1745727047177,-400.0,0.00016712,2]
[359130762,1745727047186,-400.0,0.00016712,2]
[359130764,1745727047195,-400.0,0.00016712,2]
[359130766,1745727047206,-400.0,0.00016712,2]
[359130768,1745727047215,-1685.90089464,0.00016834,2]
[359130770,1745727047225,-309.73036746,0.00016984,2]
[359130772,1745727047234,-429.15,0.00016986,2]
[359130774,1745727047244,-400.0,0.00016986,2]
[359130776,1745727047253,-400.0,0.00016986,2]
[359130778,1745727047262,-400.0,0.00016986,2]
[359130780,1745727047273,-400.0,0.00016986,2]
[359130782,1745727047282,-400.0,0.00016986,2]
[359130784,1745727047291,-400.0,0.00016986,2]
[359130786,1745727047300,-400.0,0.00016986,2]
[359130788,1745727047309,-400.0,0.00016986,2]
[359130790,1745727047318,-400.0,0.00016986,2]
[359130792,1745727047330,-400.0,0.00016986,2]
[359130794,1745727047341,-400.0,0.00016986,2]
[359130796,1745727047350,-400.0,0.00016986,2]
[359130798,1745727047360,-400.0,0.00016986,2]
[359130800,1745727047370,-400.0,0.00016986,2]
[359130801,1745727047379,-420.0,0.00016986,2]
[359130804,1745727047389,-400.0,0.00016986,2]
[359130805,1745727047399,-200.0,0.00016986,2]
[359130808,1745727047409,-400.0,0.00016986,2]
[359130809,1745727047418,-400.0,0.00016986,2]
[359130811,1745727047428,-400.0,0.00016986,2]
[359130813,1745727047437,-400.0,0.00016986,2]
[359130815,1745727047446,-400.0,0.00016986,2]
[359130817,1745727047457,-400.0,0.00016986,2]
[359130819,1745727047466,-400.0,0.00016986,2]
[359130821,1745727047476,-400.0,0.00016986,2]
[359130823,1745727047486,-400.0,0.00016986,2]
[359130825,1745727047495,-422.770864,0.00016986,2]
[359130827,1745727047505,-152.69,0.00016986,2]
[359130829,1745727047514,-296.73,0.00016986,2]
[359130831,1745727047523,-400.0,0.00016986,2]
[359130833,1745727047533,-400.0,0.00016986,2]
[359130835,1745727047542,-400.0,0.00016986,2]
[359130837,1745727047551,-400.0,0.00016986,2]
[359130839,1745727047560,-400.0,0.00016986,2]
[359130841,1745727047570,-400.0,0.00016986,2]
[359130843,1745727047580,-500.0,0.00017196,2]
[359130845,1745727047589,-500.0,0.00017196,2]
[359130847,1745727047598,-400.0,0.0001726,2]
[359130849,1745727047608,-480.81,0.0001726,2]
[359130850,1745727047617,-400.0,0.0001726,2]
[359130852,1745727047627,-400.0,0.0001726,2]
[359130854,1745727047636,-400.0,0.0001726,2]
[359130856,1745727047646,-400.0,0.0001726,2]
[359130858,1745727047656,-400.0,0.0001726,2]
[359130860,1745727047666,-48.77081535,0.0001726,2]
[359130871,1745727047767,-130.01918465,0.0001726,2]
[359130873,1745727047776,-400.0,0.0001726,2]
[359130875,1745727047786,-400.0,0.0001726,2]
[359130877,1745727047795,-400.0,0.0001726,2]
[359130879,1745727047805,-400.0,0.0001726,2]
[359130881,1745727047814,-141.46171935,0.0001726,2]
[359132093,1745728033130,-284.6103426,0.00015392,2]
[359132094,1745728033150,-187.36774407,0.000162,2]
[359132095,1745728033171,-250.0,0.00016237,2]
[359132096,1745728033192,-500.0,0.000163,2]
[359132097,1745728033214,-427.53373054,0.0001633,2]
[359132098,1745728033238,-1000.0,0.00016337,2]
[359132099,1745728033264,-1624.510435,0.00016338,2]
[359132100,1745728033284,-75.26887126,0.00016338,2]
[359132104,1745728110469,279.35636984,0.0001,2]
[359132106,1745728167092,-958.01289043,0.00015,2]
[359132127,1745728231996,-300.0,0.00014999,2]
[359132128,1745728232010,-125.68871941,0.00014999,2]
[359132129,1745728232055,-161.31128059,0.00014999,2]
[359132130,1745728232069,-8571.82756606,0.00015,2]
[359132131,1745728232081,-160.0,0.00015,2]
[359132132,1745728232094,-9985.9,0.00015,2]
[359132133,1745728232105,-1779.1113035,0.00015433,2]
[359132134,1745728232116,-1000.0,0.00016137,2]
[359132135,1745728232127,-374.09201417,0.00016328,2]
[359132136,1745728232140,-176.0,0.00016416,2]
[359132138,1745728232150,-152.0,0.00016416,2]
[359132141,1745728232162,-155.07,0.00016428,3]
[359132143,1745728232174,-465.26,0.00016428,3]
[359132145,1745728232186,-500.0,0.00016428,2]
[359132146,1745728232199,-596.98265865,0.00016428,2]
[359132147,1745728232212,-500.0,0.00016428,2]
[359132148,1745728232225,-500.0,0.00016428,2]
[359132149,1745728232239,-500.0,0.00016428,2]
[359132150,1745728232252,-500.0,0.00016428,2]
[359132151,1745728232264,-500.0,0.00016428,2]
[359132152,1745728232277,-500.0,0.00016428,2]
[359132153,1745728232291,-500.0,0.00016428,2]
[359132154,1745728232302,-500.0,0.00016428,2]
[359132155,1745728232312,-500.0,0.00016428,2]
[359132156,1745728232323,-500.0,0.00016428,2]
[359132157,1745728232334,-500.0,0.00016428,2]
[359132158,1745728232346,-500.0,0.00016428,2]
[359132159,1745728232358,-500.0,0.00016428,2]
[359132160,1745728232373,-500.0,0.00016428,2]
[359132161,1745728232388,-500.0,0.00016428,2]
[359132162,1745728232403,-500.0,0.00016428,2]
[359132163,1745728232413,-500.0,0.00016428,2]
[359132164,1745728232426,-300.0,0.00016428,2]
[359132165,1745728232438,-500.0,0.00016428,2]
[359132166,1745728232451,-500.0,0.00016428,2]
[359132167,1745728232464,-500.0,0.00016428,2]
[359132168,1745728232477,-500.0,0.00016428,2]
[359132169,1745728232488,-500.0,0.00016428,2]
[359132170,1745728232499,-500.0,0.00016428,2]
[359132171,1745728232510,-500.0,0.00016428,2]
[359132172,1745728232523,-500.0,0.00016428,2]
[359132173,1745728232535,-500.0,0.00016428,2]
[359132174,1745728232552,-500.0,0.00016428,2]
[359132175,1745728232565,-500.0,0.00016428,2]
[359132176,1745728232579,-500.0,0.00016428,2]
[359132177,1745728232594,-500.0,0.00016428,2]
[359132178,1745728232608,-500.0,0.00016428,2]
[359132179,1745728232621,-500.0,0.00016428,2]
[359132180,1745728232634,-500.0,0.00016428,2]
[359132181,1745728232646,-500.0,0.00016428,2]
[359132182,1745728232659,-500.0,0.00016428,2]
[359132183,1745728232672,-500.0,0.00016428,2]
[359132184,1745728232689,-500.0,0.00016428,2]
[359132185,1745728232700,-500.0,0.00016428,2]
[359132186,1745728232713,-500.0,0.00016428,2]
[359132187,1745728232725,-500.0,0.00016428,2]
[359132188,1745728232738,-500.0,0.00016428,2]
[359132189,1745728232751,-500.0,0.00016428,2]
[359132190,1745728232765,-500.0,0.00016428,2]
[359132191,1745728232776,-500.0,0.00016428,2]
[359132192,1745728232788,-500.0,0.00016428,2]
[359132193,1745728232800,-500.0,0.00016428,2]
[359132194,1745728232812,-500.0,0.00016428,2]
[359132195,1745728232824,-500.0,0.00016428,2]
[359132196,1745728232836,-500.0,0.00016428,2]
[359132197,1745728232848,-500.0,0.00016428,2]
[359132198,1745728232859,-500.0,0.00016428,2]
[359132199,1745728232871,-500.0,0.00016428,2]
[359132200,1745728232883,-500.0,0.00016428,2]
[359132201,1745728232896,-500.0,0.00016428,2]
[359132202,1745728232909,-500.0,0.00016428,2]
[359132203,1745728232921,-500.0,0.00016428,2]
[359132204,1745728232932,-500.0,0.00016428,2]
[359132205,1745728232943,-500.0,0.00016428,2]
[359132206,1745728232955,-205.11015688,0.00016428,2]
[359132207,1745728232967,-500.0,0.00016428,2]
[359132208,1745728232980,-500.0,0.00016428,2]
[359132209,1745728232992,-500.0,0.00016428,2]
[359132210,1745728233006,-500.0,0.00016428,2]
[359132211,1745728233017,-500.0,0.00016428,2]
[359132212,1745728233029,-500.0,0.00016428,2]
[359132213,1745728233040,-500.0,0.00016428,2]
[359132214,1745728233052,-200.0,0.00016428,2]
[359132215,1745728233063,-500.0,0.00016428,2]
[359132216,1745728233075,-574.14210839,0.00016428,2]
[359132217,1745728233087,-500.0,0.00016438,2]
[359132218,1745728233099,-503.11245542,0.00016438,2]
[359132219,1745728233110,-501.95162171,0.00016438,2]
[359132220,1745728233122,-500.0,0.00016438,2]
[359132221,1745728233134,-512.81892985,0.00016438,2]
[359132222,1745728233146,-506.27572507,0.00016438,2]
[359132223,1745728233157,-400.0,0.00016438,2]
[359132224,1745728233169,-501.08268905,0.00016438,2]
[359132225,1745728233181,-391.93736087,0.00016438,2]
[359132226,1745728233192,-500.0,0.00016438,2]
[359132227,1745728233204,-490.0,0.00016438,2]
[359132228,1745728233216,-504.82427589,0.00016438,2]
[359132229,1745728233227,-504.49051777,0.00016438,2]
[359132230,1745728233239,-500.0,0.00016438,2]
[359132231,1745728233251,-510.85382546,0.00016438,2]
[359132232,1745728233262,-500.0,0.00016438,2]
[359132233,1745728233274,-513.12555067,0.00016438,2]
[359132234,1745728233286,-509.3389756,0.00016438,2]
[359132235,1745728233297,-514.70737977,0.00016438,2]
[359132236,1745728233309,-512.07644788,0.00016438,2]
[359132237,1745728233321,-508.81287255,0.00016438,2]
[359132238,1745728233333,-514.23211873,0.00016438,2]
[359132239,1745728233344,-514.83716766,0.00016438,2]
[359132240,1745728233356,-503.73017733,0.00016438,2]
[359132241,1745728233368,-503.48102915,0.00016438,2]
[359132242,1745728233379,-509.75527782,0.00016438,2]
[359132243,1745728233391,-509.84698673,0.00016438,2]
[359132244,1745728233403,-510.39164472,0.00016438,2]
[359132245,1745728233419,-500.0,0.00016438,2]
[359132246,1745728233431,-507.43956297,0.00016438,2]
[359132247,1745728233443,-505.80408234,0.00016438,2]
[359132248,1745728233455,-400.0,0.00016438,2]
[359132249,1745728233464,-505.19142224,0.00016438,2]
[359132250,1745728233473,-513.1691787,0.00016438,2]
[359132251,1745728233484,-500.0,0.00016438,2]
[359132252,1745728233493,-516.12531504,0.00016438,2]
[359132253,1745728233711,-516.55763597,0.00016438,2]
[359132254,1745728233735,-514.85928045,0.00016438,2]
[359132255,1745728233745,-506.2052666,0.00016438,2]
[359132256,1745728233755,-519.96524342,0.00016438,2]
[359132257,1745728233766,-508.48080104,0.00016438,2]
[359132258,1745728233776,-508.65643041,0.00016438,2]
[359132259,1745728233787,-507.22847826,0.00016438,2]
[359132260,1745728233797,-520.00624663,0.00016438,2]
[359132261,1745728233806,-504.50357246,0.00016438,2]
[359132262,1745728233816,-514.43310549,0.00016438,2]
[359132263,1745728233826,-512.32676003,0.00016438,2]
[359132264,1745728233835,-504.44914859,0.00016438,2]
[359132265,1745728233845,-400.0,0.00016438,2]
[359132266,1745728233855,-512.08922773,0.00016438,2]
[359132267,1745728233866,-501.98368989,0.00016438,2]
[359132268,1745728233876,-510.93830196,0.00016438,2]
[359132269,1745728233886,-511.76176644,0.00016438,2]
[359132270,1745728233896,-530.01760861,0.00016438,2]
[359132271,1745728233906,-162.78339217,0.00016438,2]
[359132272,1745728233917,-400.0,0.00016438,2]
[359132273,1745728233927,-505.07780525,0.00016438,2]
[359132274,1745728233936,-525.08,0.00016438,2]
[359132275,1745728233946,-510.55573456,0.00016438,2]
[359132276,1745728233956,-480.48706247,0.00016438,2]
[359132277,1745728233966,-199.92472539,0.00016438,2]
[359132278,1745728233976,-512.96594759,0.00016438,2]
[359132279,1745728233985,-518.26832976,0.00016438,2]
[359132280,1745728233995,-503.33644882,0.00016438,2]
[359132281,1745728234005,-519.85552802,0.00016438,2]
[359132282,1745728234015,-515.06049427,0.00016438,2]
[359132283,1745728234025,-511.28721634,0.00016438,2]
[359132284,1745728234035,-520.74890006,0.00016438,2]
[359132285,1745728234044,-172.0,0.00016438,2]
[359132286,1745728234054,-400.0,0.00016438,2]
[359132287,1745728234064,-512.45036145,0.00016438,2]
[359132288,1745728234074,-523.33275196,0.00016438,2]
[359132289,1745728234083,-511.52921995,0.00016438,2]
[359132290,1745728234093,-400.0,0.00016438,2]
[359132291,1745728234102,-400.0,0.00016438,2]
[359132292,1745728234112,-400.0,0.00016438,2]
[359132293,1745728234122,-360.77775016,0.00016438,2]
[359132294,1745728234131,-507.8814734,0.00016438,2]
[359132295,1745728234142,-400.0,0.00016438,2]
[359132296,1745728234151,-504.61107833,0.00016438,2]
[359132297,1745728234161,-400.0,0.00016438,2]
[359132298,1745728234171,-504.63,0.00016438,2]
[359132299,1745728234182,-465.24,0.00016438,2]
[359132300,1745728234192,-512.83032868,0.00016438,2]
[359132301,1745728234203,-498.39688495,0.00016438,2]
[359132302,1745728234212,-505.89877836,0.00016438,2]
[359132303,1745728234224,-507.11875164,0.00016438,2]
[359132304,1745728234234,-503.28050577,0.00016438,2]
[359132305,1745728234244,-503.42025589,0.00016438,2]
[359132306,1745728234253,-511.77438548,0.00016438,2]
[359132307,1745728234263,-504.8284597,0.00016438,2]
[359132308,1745728234272,-506.11360317,0.00016438,2]
[359132309,1745728234281,-502.15424443,0.00016438,2]
[359132310,1745728234291,-503.72959292,0.00016438,2]
[359132311,1745728234301,-508.66215699,0.00016438,2]
[359132312,1745728234310,-509.90776413,0.00016438,2]
[359132313,1745728234319,-502.62533772,0.00016438,2]
[359132314,1745728234329,-504.58472951,0.00016438,2]
[359132315,1745728234339,-502.21845936,0.00016438,2]
[359132316,1745728234348,-518.61901308,0.00016438,2]
[359132317,1745728234358,-501.66056805,0.00016438,2]
[359132318,1745728234368,-510.91219528,0.00016438,2]
[359132319,1745728234378,-506.75328944,0.00016438,2]
[359132320,1745728234388,-507.43136891,0.00016438,2]
[359132321,1745728234397,-432.16,0.00016438,2]
[359132322,1745728234407,-502.95824274,0.00016438,2]
[359132323,1745728234418,-503.32708975,0.00016438,2]
[359132324,1745728234428,-400.0,0.00016438,2]
[359132325,1745728234438,-508.96571187,0.00016438,2]
[359132326,1745728234448,-502.75928324,0.00016438,2]
[359132327,1745728234459,-504.82199818,0.00016438,2]
[359132328,1745728234469,-181.79511174,0.00016438,2]
[359132329,1745728234479,-506.45614022,0.00016438,2]
[359132330,1745728234491,-514.36286455,0.00016438,2]
[359132331,1745728234504,-400.0,0.00016438,2]
[359132332,1745728234518,-500.0,0.00016438,2]
[359132333,1745728234528,-502.32998359,0.00016438,2]
[359132334,1745728234538,-400.0,0.00016438,2]
[359132335,1745728234548,-500.0,0.00016438,2]
[359132336,1745728234559,-518.64583899,0.00016438,2]
[359132337,1745728234570,-507.0022879,0.00016438,2]
[359132338,1745728234583,-516.72651539,0.00016438,2]
[359132339,1745728234594,-373.06025487,0.00016438,2]